{"text_format":"3","workbook":"xlsx","n_sheets":1,"sheets":["Fisherman's Wharf Bulkhead"],"not_rendered":{"images":2,"defined_names":1},"read":"whole","date_system":"1900"}

{"sheet":"Fisherman's Wharf Bulkhead","index":0,"n_rows":27,"n_cols":7,"rows_kept":27,"merged":[[0,0,0,6],[1,0,1,6],[3,0,3,6],[25,0,25,5]]}
["Riverfront Park Seawall Replacement - ITB 20383"]
["Bid Schedule - Revised - Addendum 6"]
["ITEM #","DESCRIPTION","QTY","UNIT",null,"PRICE/UNIT","PRICE"]
["General                                  FEMA Funding "]
[1,"Mobilization and Demobilization",1,"LS",null,null,{"$f":"C5*F5","v":0}]
[2,"Construction and As-Built Survey",1,"LS",null,null,0]
[3,"Environmental Compliance",1,"LS",null,null,0]
[4,"Temporary Traffic Control",1,"LS",null,null,0]
[5,"Demolition, Hauling and Disposal",{"v":4500,"d":"4,500"},"TN",null,null,0]
[6,"Structural Fill",{"v":3000,"d":"3,000"},"CY",null,null,0]
[7,"UC-95 Sheet Pile Bulkhead",{"v":1428,"d":"1,428"},"LF",null,null,{"$f":"C11*F11","v":0}]
[8,"Seawall Cap (includes concrete plugs)",{"v":1428,"d":"1,428"},"LF",null,null,0]
[9,"Prestressed Concrete Support Piles",24,"EA",null,null,0]
[10,"Overlook Structures",3,"EA",null,null,0]
[11,"Decorative Handrail",{"v":1421,"d":"1,421"},"LF",null,null,0]
[12,"Manhole, FDOT Type P-7 ",9,"EA",null,null,{"$f":"C16*F16","v":0}]
[13,"Wall Connection ",11,"EA",null,null,0]
[14,"Duckbill Check Valve ",10,"EA",null,null,0]
[15,"15” RCP ",44,"LF",null,null,0]
[16,"18\" RCP",44,"LF",null,null,0]
[17,"24” RCP ",45,"LF",null,null,0]
[18,"30” RCP ",64,"LF",null,null,0]
[19,"60” RCP ",8,"LF",null,null,0]
[20,"Pedestrian Bridge Restoration",1,"LS",null,null,0]
[21,"Allowance - City Building Permit Fee",1,"LS",null,{"v":13500,"d":"$13,500.00"},{"v":13500,"d":"$13,500.00"}]
["TOTAL",{"$nulls":5},{"$f":"SUM(G5:G25)","v":{"v":13500,"d":"$13,500.00"}}]
["LS=Lump Sum; CY=Cubic Yard; LF=Linear Foot; EA=per Each; TN=Ton"]